bitfinex/quotes_BTCUSD_20230118
["timestamp","ask_amount","ask_price","bid_price","bid_amount"]
[1674050047302,0.91081205,21414.0,21410.0,0.3]
[1674050047561,0.91081205,21414.0,21409.0,0.35993439]
[1674050047821,0.305458,21413.0,21410.0,0.3]
[1674050048093,1.101538,21414.0,21410.0,0.3]
[1674050048379,0.46056167,21419.0,21411.0,0.4222]
[1674050048629,0.39637257,21415.0,21412.0,0.1222]
[1674050049162,0.0005,21413.0,21412.0,0.1222]
[1674050049732,0.468422,21413.0,21411.0,0.33380497]
[1674050049994,0.317848,21412.0,21411.0,0.33380497]
[1674050050253,0.0005,21413.0,21411.0,0.33380497]
[1674050050530,0.0005,21413.0,21411.0,0.45600497]
[1674050050794,0.0005,21413.0,21412.0,0.43611]
[1674050051099,0.0005,21413.0,21411.0,0.45600497]
[1674050051357,0.0005,21413.0,21412.0,0.3]
[1674050051617,0.0005,21413.0,21411.0,0.45600497]
[1674050051891,0.3152,21412.0,21411.0,0.45600497]
[1674050052184,1.01755264,21412.0,21408.0,0.00862297]
[1674050052487,1.01755264,21412.0,21408.0,0.00362297]
[1674050052488,1.10713151,21411.0,21408.0,0.00362297]
[1674050052774,0.70237964,21410.0,21408.0,0.00362297]
[1674050053031,0.318055,21409.0,21408.0,0.00362297]
[1674050053561,0.15125,21412.0,21409.0,0.44816925]
[1674050053816,0.47720169,21411.0,21409.0,0.44816925]
[1674050054073,0.324007,21410.0,21409.0,0.44816925]
[1674050054340,0.324007,21410.0,21408.0,0.00362297]
[1674050054590,0.43965856,21412.0,21409.0,0.41854756]
[1674050054850,0.47720169,21412.0,21409.0,0.41854756]
[1674050055155,0.312653,21411.0,21408.0,0.00362297]
[1674050055389,0.51705569,21410.0,21408.0,0.00362297]
[1674050055668,0.312653,21409.0,21408.0,0.00362297]
[1674050055925,0.312653,21409.0,21408.0,0.3813773]
[1674050056206,0.21625255,21413.0,21408.0,0.6813773]
[1674050056493,0.47720169,21412.0,21409.0,0.3]
[1674050056750,0.310094,21411.0,21408.0,0.6813773]
[1674050057008,0.042413,21410.0,21408.0,0.6813773]
[1674050057259,0.19072595,21411.0,21408.0,0.3813773]
[1674050057260,0.310094,21409.0,21408.0,0.3813773]
[1674050057850,0.19072595,21411.0,21408.0,0.3813773]
[1674050058107,0.47720169,21411.0,21408.0,0.3813773]
[1674050058367,0.47720169,21411.0,21408.0,0.00362297]
[1674050058368,0.83560763,21410.0,21408.0,0.00362297]
[1674050058642,0.147076,21409.0,21408.0,0.00362297]
[1674050058913,0.33780195,21409.0,21408.0,0.00362297]
[1674050059366,0.147076,21409.0,21408.0,0.00362297]
[1674050059587,0.015886,21409.0,21408.0,0.00362297]
[1674050059815,0.49898663,21410.0,21408.0,0.30362297]
[1674050060250,0.323419,21409.0,21407.0,0.34258725]
[1674050060485,0.029088,21408.0,21407.0,0.34258725]
[1674050060757,0.094408,21408.0,21407.0,0.34258725]
[1674050061546,0.62517169,21411.0,21407.0,0.46458725]
[1674050061547,0.47720169,21411.0,21407.0,0.46458725]
[1674050061809,0.47720169,21411.0,21408.0,0.3]
[1674050062081,0.38566565,21413.0,21408.0,0.3]
[1674050062337,0.47720169,21412.0,21408.0,0.3]
[1674050062596,0.320784,21411.0,21409.0,0.4660056]
[1674050062904,0.38566565,21413.0,21410.0,0.4212]
[1674050063431,0.38566565,21413.0,21411.0,0.1213]
[1674050063700,0.316357,21412.0,21411.0,0.1213]
[1674050064741,0.79347369,21412.0,21411.0,0.1213]
[1674050065525,0.79347369,21412.0,21410.0,0.3]
[1674050065800,0.0005,21413.0,21411.0,0.34571659]
[1674050066079,0.0005,21413.0,21412.0,0.452901]
[1674050066352,0.0005,21413.0,21412.0,0.752901]
[1674050066627,0.0005,21413.0,21412.0,0.4222]
[1674050066897,0.0005,21413.0,21412.0,0.1222]
[1674050067188,0.0005,21413.0,21411.0,0.34571659]
[1674050067723,0.0005,21413.0,21412.0,0.3]
[1674050067981,0.0005,21413.0,21412.0,0.4222]
[1674050068561,0.0005,21413.0,21412.0,1.72328873]
[1674050068829,0.00013297,21413.0,21412.0,2.47838825]
[1674050069080,0.00013297,21413.0,21412.0,2.66606409]
[1674050069337,0.00013297,21413.0,21412.0,2.77727109]
[1674050069630,0.00013297,21413.0,21412.0,2.55547152]
[1674050069893,0.00013297,21413.0,21412.0,2.77727109]
[1674050070146,0.00013297,21413.0,21412.0,2.88704251]
[1674050070417,0.00013297,21413.0,21412.0,2.89040928]
[1674050070677,0.00013297,21413.0,21412.0,2.77870916]
[1674050070943,0.00013297,21413.0,21412.0,2.55541325]
[1674050071270,0.00013297,21413.0,21412.0,2.77870916]
[1674050072318,0.00013297,21413.0,21412.0,2.66703393]
[1674050072571,0.00013297,21413.0,21412.0,2.77866417]
[1674050072838,0.00013297,21413.0,21412.0,1.2070899]
[1674050073338,0.00013297,21413.0,21412.0,0.79743063]
[1674050073634,0.00013297,21413.0,21412.0,0.48099263]
[1674050073891,0.00013297,21413.0,21412.0,1.1987669]
[1674050074144,0.00013297,21413.0,21412.0,2.35211004]
[1674050074406,0.00013297,21413.0,21412.0,2.24052555]
[1674050074649,0.00013297,21413.0,21412.0,1.34872687]
[1674050074914,0.00013297,21413.0,21412.0,2.80180429]
[1674050075189,0.00013297,21413.0,21412.0,1.87363922]
[1674050075458,0.00013297,21413.0,21412.0,1.49872687]
[1674050075718,0.00013297,21413.0,21412.0,2.651979]
[1674050075975,0.00013297,21413.0,21412.0,1.49872687]
[1674050076525,0.00013297,21413.0,21412.0,1.33135209]
[1674050077040,0.00013297,21413.0,21412.0,1.21980763]
[1674050077305,0.00013297,21413.0,21412.0,0.91980763]
[1674050077587,0.19085892,21413.0,21412.0,0.48099263]
[1674050077893,0.39568097,21413.0,21412.0,0.48099263]
[1674050078145,0.31982297,21413.0,21412.0,0.48099263]
[1674050078396,0.00013297,21413.0,21412.0,0.48099263]
[1674050079376,0.00013297,21413.0,21412.0,0.78099263]
[1674050080929,0.60145165,21416.0,21412.0,0.78099263]
[1674050080930,0.45272165,21416.0,21412.0,0.78099263]
[1674050081196,0.47720169,21416.0,21413.0,0.3]
[1674050081478,0.47720169,21416.0,21413.0,0.4222]
[1674050081738,0.48317591,21421.0,21415.0,0.2435]
[1674050082012,0.48317591,21421.0,21416.0,0.620535]
[1674050082264,0.01669998,21422.0,21418.0,0.1212]
[1674050082777,0.01669998,21422.0,21418.0,0.5712]
[1674050083059,0.4390863,21422.0,21418.0,0.4212]
[1674050083575,0.4390863,21422.0,21421.0,0.1222]
[1674050083576,0.01669998,21422.0,21421.0,0.1222]
[1674050084590,0.01669998,21422.0,21421.0,0.4222]
[1674050084865,0.01669998,21422.0,21420.0,0.37002851]
[1674050085416,0.01669998,21422.0,21421.0,0.3]
[1674050087036,0.01669998,21422.0,21420.0,0.37002851]
[1674050087302,0.7290135,21422.0,21420.0,0.37002851]
[1674050087556,0.311351,21421.0,21417.0,0.1212]
[1674050087808,0.53828755,21422.0,21418.0,0.46442342]
[1674050087809,0.19072595,21420.0,21418.0,0.46442342]
[1674050088086,0.19072595,21421.0,21418.0,0.46442342]
[1674050088366,0.49390167,21422.0,21418.0,0.46442342]
[1674050088623,0.49390167,21422.0,21419.0,0.3]
[1674050089139,0.49390167,21422.0,21420.0,0.40715638]
[1674050089140,0.01669998,21422.0,21420.0,0.40715638]
[1674050089437,0.01669998,21422.0,21421.0,0.3]
[1674050090259,0.01669998,21422.0,21420.0,0.40715638]
[1674050090793,0.01669998,21422.0,21421.0,0.3]
[1674050092468,0.01669998,21422.0,21420.0,0.40715638]
[1674050092732,0.01669998,21422.0,21421.0,0.3]
[1674050096026,0.01669998,21422.0,21421.0,0.739012]
[1674050096296,0.01669998,21422.0,21421.0,0.889012]
[1674050096571,0.01669998,21422.0,21421.0,0.897512]
[1674050096827,0.01669998,21422.0,21421.0,1.019012]
[1674050097083,0.01669998,21422.0,21421.0,1.38041745]
[1674050097340,0.00366005,21422.0,21421.0,1.43179293]
[1674050097605,0.00366005,21422.0,21421.0,1.85139333]
[1674050098155,0.00366005,21422.0,21421.0,1.43179293]
[1674050099440,0.00366005,21422.0,21421.0,1.18689293]
[1674050100212,0.00366005,21422.0,21421.0,1.33689293]
[1674050100711,0.00366005,21422.0,21421.0,1.44843739]
[1674050100990,0.00366005,21422.0,21421.0,1.03565646]
[1674050101239,0.00366005,21422.0,21421.0,1.52829569]
[1674050101494,0.00366005,21422.0,21421.0,3.07015824]
[1674050101495,0.00055065,21422.0,21421.0,3.07015824]
[1674050101791,0.77870147,21434.0,21433.0,7.82794833]
[1674050101998,0.77870147,21434.0,21433.0,7.98228896]
[1674050101999,1.25590316,21434.0,21433.0,7.98228896]
[1674050102269,1.40590316,21434.0,21433.0,7.65001396]
[1674050102527,1.66598855,21434.0,21433.0,7.65001396]
[1674050102801,1.90395655,21434.0,21433.0,7.65001396]
[1674050103034,2.07298464,21434.0,21433.0,7.65001396]
[1674050103282,3.18554722,21434.0,21433.0,7.65001396]
[1674050103522,3.69354785,21434.0,21433.0,7.59387679]
[1674050103741,3.19933513,21434.0,21433.0,7.59387679]
[1674050104040,2.16331046,21434.0,21433.0,7.59387679]
[1674050104288,1.94064377,21434.0,21433.0,7.57601125]
[1674050104545,3.06329732,21434.0,21433.0,7.57601125]
[1674050104807,3.21915141,21434.0,21433.0,7.57601125]
[1674050105062,2.76336764,21434.0,21433.0,7.57601125]
[1674050105321,3.27920474,21434.0,21433.0,7.57601125]
[1674050105603,4.20854446,21434.0,21433.0,7.57601125]
[1674050105836,4.22630443,21434.0,21433.0,4.99944372]
[1674050106087,4.5643606,21434.0,21433.0,4.99944372]
[1674050106345,4.5643606,21434.0,21433.0,0.42276648]
[1674050106346,5.54249374,21434.0,21433.0,0.42276648]
[1674050106634,0.52393484,21433.0,21426.0,0.25]
[1674050106903,0.1476,21427.0,21426.0,0.25]
[1674050107160,1.13613664,21427.0,21422.0,0.41145751]
[1674050107418,0.074,21423.0,21422.0,0.41145751]
[1674050107683,0.65933495,21423.0,21419.0,0.25019]
[1674050107952,0.0738,21421.0,21419.0,0.25]
[1674050108253,0.0738,21421.0,21416.0,0.15]
[1674050108254,0.19072595,21421.0,21420.0,0.37106484]
[1674050108499,0.307506,21421.0,21420.0,0.37106484]
[1674050109044,0.22264,21425.0,21420.0,0.37075657]
[1674050109320,0.0738,21425.0,21420.0,0.37075657]
[1674050109613,0.316102,21424.0,21420.0,0.37075657]
[1674050109885,0.0738,21421.0,21417.0,0.45481509]
[1674050110152,0.074,21423.0,21420.0,0.37366615]
[1674050110413,0.311668,21422.0,21420.0,0.37366615]
[1674050110689,0.62712169,21425.0,21420.0,0.37366615]
[1674050110690,0.040839,21421.0,21420.0,0.37366615]
[1674050111023,1.2612,21426.0,21420.0,0.67366615]
[1674050111272,1.33907691,21429.0,21420.0,0.67366615]
[1674050111273,0.0738,21428.0,21421.0,0.45]
[1674050111537,0.19072595,21426.0,21421.0,0.45]
[1674050111835,0.326197,21425.0,21421.0,0.45]
[1674050112112,0.326197,21425.0,21421.0,0.15]
[1674050112113,0.320068,21424.0,21421.0,0.15]
[1674050112353,0.032439,21423.0,21421.0,0.15]
[1674050112616,0.48886232,21427.0,21421.0,0.45]
[1674050112890,0.26472595,21427.0,21421.0,0.45]
[1674050113158,0.0738,21425.0,21420.0,0.37366615]
[1674050113416,0.026704,21424.0,21422.0,0.49013305]
[1674050113680,0.41486232,21427.0,21422.0,0.49013305]
[1674050113681,0.325803,21423.0,21422.0,0.49013305]
[1674050113930,0.64010232,21427.0,21422.0,0.49013305]
[1674050113931,0.48886232,21427.0,21422.0,0.49013305]
[1674050114191,2.1618,21429.0,21422.0,0.49013305]
[1674050114466,1.1574,21429.0,21423.0,0.3]
[1674050115003,1.1574,21429.0,21424.0,0.15]
[1674050115280,0.0738,21430.0,21424.0,0.15]
[1674050115560,0.45102244,21430.0,21424.0,0.15]
[1674050115836,0.19072595,21430.0,21425.0,0.48356206]
[1674050116132,0.01752584,21431.0,21425.0,0.48356206]
[1674050116406,0.20825179,21431.0,21425.0,0.48356206]
[1674050116674,0.51367095,21430.0,21425.0,0.48356206]
[1674050116934,0.22028795,21429.0,21425.0,0.48356206]
[1674050117194,0.318063,21428.0,21425.0,0.48356206]
[1674050117631,0.034444,21427.0,21425.0,0.48356206]
[1674050117895,0.074,21429.0,21425.0,0.48356206]
[1674050118147,0.320538,21428.0,21425.0,0.48356206]
[1674050118449,0.66792764,21427.0,21421.0,0.15]
[1674050118724,0.66792764,21427.0,21420.0,0.11126414]
[1674050118725,0.074,21423.0,21420.0,0.42125047]
[1674050118985,0.074,21423.0,21422.0,0.46492333]
[1674050119247,0.404804,21423.0,21422.0,0.46492333]
[1674050119520,0.404804,21423.0,21419.0,0.11126414]
[1674050119521,0.59532995,21423.0,21419.0,0.11126414]
[1674050119782,0.59532995,21423.0,21419.0,0.37325984]
[1674050119783,0.21242895,21422.0,21419.0,0.37325984]
[1674050120068,0.19072595,21422.0,21421.0,0.40975121]
[1674050120339,0.0738,21423.0,21421.0,0.40975121]
[1674050120600,0.64206232,21426.0,21418.0,0.15277]
[1674050120601,0.31165,21422.0,21418.0,0.15277]
[1674050120855,0.19072595,21422.0,21418.0,0.43140892]
[1674050121130,0.19072595,21422.0,21419.0,0.65755121]
[1674050121412,0.64143232,21425.0,21419.0,0.54628707]
[1674050121677,0.64143232,21425.0,21417.0,0.42863892]
[1674050121678,0.074,21422.0,21417.0,0.42863892]
[1674050121932,0.074,21420.0,21417.0,0.11126414]
[1674050122196,0.0734,21418.0,21415.0,0.37149931]
[1674050122479,0.23672595,21417.0,21415.0,0.37149931]
[1674050122752,0.19072595,21418.0,21415.0,0.11126414]
[1674050123023,0.1526,21421.0,21417.0,0.49966]
[1674050123024,0.48836232,21421.0,21417.0,0.49966]
[1674050123279,1.1525,21422.0,21417.0,0.49966]
[1674050123534,0.397436,21421.0,21417.0,0.49966]
[1674050123809,0.029071,21420.0,21417.0,0.49966]
[1674050124117,0.029071,21420.0,21414.0,0.11126414]
[1674050124118,0.319399,21419.0,21414.0,0.11126414]
[1674050124401,0.319399,21419.0,21415.0,0.45686848]
[1674050124402,0.51314795,21418.0,21415.0,0.45686848]
[1674050124660,0.103685,21417.0,21415.0,0.45686848]
[1674050124929,0.320178,21416.0,21413.0,0.4607638]
[1674050125208,0.032329,21415.0,21413.0,0.4607638]
[1674050125511,0.319044,21414.0,21413.0,0.4607638]
[1674050126025,1.14893511,21417.0,21413.0,0.4607638]
[1674050126299,0.322608,21416.0,21415.0,0.3972975]
[1674050126565,0.322608,21416.0,21412.0,0.00457176]
[1674050126866,0.029899,21415.0,21412.0,0.39816727]
[1674050127132,0.19072595,21416.0,21412.0,0.39816727]
[1674050127407,0.60881055,21415.0,21412.0,0.39816727]
[1674050127670,0.60881055,21415.0,21412.0,0.00457176]
[1674050127671,0.034855,21414.0,21412.0,0.00457176]
[1674050127967,0.15602,21419.0,21412.0,0.00457176]
[1674050127968,0.074,21420.0,21413.0,0.36447993]
[1674050128246,0.43119229,21425.0,21412.0,0.00457176]
[1674050128247,0.15309,21427.0,21416.0,0.11149796]
[1674050128518,0.15309,21427.0,21420.0,0.074]
[1674050128779,0.68145923,21430.0,21420.0,0.074]
[1674050129034,0.68145923,21430.0,21423.0,0.0739]
[1674050129035,0.17537466,21430.0,21423.0,0.0739]
[1674050129302,0.17537466,21430.0,21424.0,0.419069]
[1674050129569,0.09132584,21431.0,21424.0,0.419069]
[1674050129570,0.329005,21429.0,21424.0,0.419069]
[1674050129828,0.11482784,21431.0,21425.0,0.3]
[1674050130357,0.11482784,21431.0,21424.0,0.419069]
[1674050130358,0.0734,21428.0,21424.0,0.419069]
[1674050130623,0.322468,21427.0,21424.0,0.419069]
[1674050130915,0.030039,21426.0,21424.0,0.419069]
[1674050131182,0.321582,21425.0,21424.0,0.419069]
[1674050131434,0.0734,21428.0,21424.0,0.719069]
[1674050131710,0.0734,21428.0,21424.0,0.419069]
[1674050132020,0.333298,21427.0,21424.0,0.419069]
[1674050132529,0.28883275,21431.0,21427.0,6.55e-05]
[1674050132530,0.01752584,21431.0,21427.0,6.55e-05]
[1674050133297,0.312989,21430.0,21427.0,6.55e-05]
[1674050133552,0.01752584,21431.0,21427.0,6.55e-05]
[1674050134073,0.19072595,21430.0,21427.0,6.55e-05]
[1674050134333,0.014158,21429.0,21427.0,6.55e-05]
[1674050134600,0.327636,21428.0,21427.0,6.55e-05]
[1674050135124,0.19072595,21430.0,21427.0,0.38557784]
[1674050135403,0.09102584,21431.0,21427.0,0.38557784]
[1674050135969,0.315863,21430.0,21427.0,0.38557784]
[1674050136259,0.036644,21429.0,21427.0,0.38557784]
[1674050136516,0.323859,21428.0,21427.0,6.55e-05]
[1674050136784,0.320104,21428.0,21427.0,6.55e-05]
[1674050137043,0.09152584,21431.0,21427.0,6.55e-05]
[1674050137317,0.11731742,21431.0,21428.0,0.35839703]
[1674050137795,0.01752584,21431.0,21428.0,0.35839703]
[1674050138058,0.01752584,21431.0,21428.0,0.47999018]
[1674050138320,0.49472753,21431.0,21428.0,6.006e-05]
[1674050138575,0.031002,21430.0,21428.0,6.006e-05]
[1674050138839,0.312885,21429.0,21428.0,0.37970477]
[1674050139897,0.312885,21429.0,21428.0,6.006e-05]
[1674050140642,0.01752584,21431.0,21428.0,6.006e-05]
[1674050141157,0.323623,21430.0,21428.0,6.006e-05]
[1674050141726,0.01692584,21431.0,21428.0,0.40961964]
[1674050142239,0.20765179,21431.0,21428.0,0.40961964]
[1674050142521,0.313324,21430.0,21428.0,0.40961964]
[1674050142803,0.313324,21430.0,21428.0,6.006e-05]
[1674050142804,0.434924,21430.0,21428.0,6.006e-05]
[1674050143058,0.161183,21429.0,21428.0,6.006e-05]
[1674050143589,0.039183,21429.0,21428.0,6.006e-05]
[1674050143858,0.104503,21429.0,21428.0,6.006e-05]
[1674050144320,0.039183,21429.0,21428.0,6.006e-05]
[1674050144592,0.104503,21429.0,21428.0,6.006e-05]
[1674050144860,0.039183,21429.0,21428.0,6.006e-05]
[1674050145118,0.01692584,21431.0,21428.0,6.006e-05]
[1674050145376,0.01692584,21431.0,21428.0,0.48201555]
[1674050145636,0.01692584,21431.0,21429.0,0.0085]
[1674050145920,0.01692584,21431.0,21430.0,0.570242]
[1674050146177,0.01692584,21431.0,21430.0,0.870242]
[1674050147227,0.01692584,21431.0,21430.0,0.878742]
[1674050148310,0.01762584,21440.0,21431.0,0.15]
[1674050148322,0.01762584,21440.0,21432.0,0.02618337]
[1674050148573,0.01762584,21440.0,21438.0,0.1211]
[1674050148825,0.01762584,21440.0,21439.0,0.329571]
[1674050149118,0.01762584,21440.0,21437.0,0.122]
[1674050149380,2.584e-05,21440.0,21437.0,0.117]
[1674050149637,2.584e-05,21440.0,21438.0,0.122]
[1674050149896,2.584e-05,21440.0,21439.0,0.310733]
[1674050150157,2.584e-05,21440.0,21439.0,0.322288]
[1674050150416,2.584e-05,21440.0,21439.0,0.3]
[1674050151242,2.584e-05,21440.0,21439.0,0.614489]
[1674050152091,2.584e-05,21440.0,21439.0,0.3]
[1674050152365,2.584e-05,21440.0,21438.0,0.422]
[1674050152637,0.01052984,21442.0,21440.0,0.35006668]
[1674050152895,0.07584984,21442.0,21440.0,0.35006668]
[1674050153741,0.01052984,21442.0,21441.0,0.0010207]
[1674050154257,0.01052984,21442.0,21440.0,0.35006668]
[1674050154529,0.31499284,21442.0,21437.0,0.46150567]
[1674050154808,0.51111295,21441.0,21437.0,0.46150567]
[1674050155066,0.51111295,21441.0,21439.0,0.46753257]
[1674050155067,0.19072595,21441.0,21439.0,0.46753257]
[1674050155321,0.01052984,21442.0,21439.0,0.46753257]
[1674050156175,0.33870884,21442.0,21439.0,0.46753257]
[1674050156437,0.33870884,21442.0,21435.0,0.38819496]
[1674050156438,0.024328,21441.0,21435.0,0.38819496]
[1674050156708,0.51567295,21440.0,21437.0,0.47706934]
[1674050156976,0.04618728,21442.0,21437.0,0.47706934]
[1674050157258,0.323365,21441.0,21437.0,0.47706934]
[1674050157571,0.62754369,21440.0,21434.0,0.40542265]
[1674050157829,0.50121695,21439.0,21434.0,0.40542265]
[1674050158090,0.23274195,21438.0,21434.0,0.40542265]
[1674050158343,0.310491,21437.0,21432.0,0.15]
[1674050158614,0.23274195,21436.0,21433.0,0.46992802]
[1674050158895,0.19072595,21437.0,21433.0,0.46992802]
[1674050159154,0.7214606,21441.0,21433.0,0.59072802]
[1674050159155,0.18046,21441.0,21433.0,0.59072802]
[1674050159408,0.19072595,21440.0,21434.0,0.3]
[1674050159677,1.17962984,21442.0,21434.0,0.3]
[1674050159678,0.19072595,21441.0,21434.0,0.3]
[1674050159934,1.17962984,21442.0,21434.0,0.3]
[1674050159935,0.01052984,21442.0,21435.0,0.6099]
[1674050160227,0.01052984,21442.0,21441.0,0.1215]
[1674050160489,0.01052984,21442.0,21441.0,0.324497]
[1674050160754,0.01052984,21442.0,21441.0,0.624497]
[1674050161032,0.01052984,21442.0,21441.0,1.08048912]
[1674050161311,0.01052984,21442.0,21441.0,0.624497]
[1674050161589,2.984e-05,21442.0,21441.0,1.08800313]
[1674050161866,0.01786554,21443.0,21442.0,0.15]
[1674050162120,0.01786554,21443.0,21442.0,0.625932]
[1674050162648,0.01786554,21443.0,21442.0,0.99887249]
[1674050162941,0.01786554,21443.0,21442.0,1.21918318]
[1674050163464,0.02252007,21445.0,21443.0,0.01779446]
[1674050163741,0.0215497,21449.0,21444.0,0.72723336]
[1674050163742,0.20631183,21448.0,21444.0,0.72723336]
[1674050164028,0.20631183,21448.0,21445.0,0.601779]
[1674050164518,0.20631183,21448.0,21446.0,0.328089]
[1674050164527,0.22851462,21448.0,21446.0,0.328089]
[1674050164811,0.22851462,21448.0,21444.0,0.40932536]
[1674050165075,0.334505,21447.0,21444.0,0.40932536]
[1674050165339,0.20631183,21448.0,21445.0,0.122]
[1674050165596,0.20631183,21448.0,21446.0,0.312614]
[1674050165857,0.20631183,21448.0,21445.0,0.122]
[1674050166115,0.20631183,21448.0,21445.0,0.422]
[1674050166358,0.20631183,21448.0,21446.0,0.45705294]
[1674050166620,0.20631183,21448.0,21447.0,0.618045]
[1674050166922,0.20631183,21448.0,21443.0,0.71489989]
[1674050167187,0.04089821,21449.0,21443.0,0.42510543]
[1674050167188,0.72728596,21447.0,21443.0,0.42510543]
[1674050167447,0.51594195,21446.0,21440.0,0.122]
[1674050167703,0.51594195,21446.0,21438.0,0.2716]
[1674050167704,0.19072595,21445.0,21438.0,0.2716]
[1674050167980,0.21801695,21444.0,21439.0,0.45531539]
[1674050168280,0.50065895,21443.0,21439.0,0.45531539]
[1674050168552,0.037623,21442.0,21441.0,0.4215863]
[1674050168824,1.71983714,21448.0,21443.0,0.36180665]
[1674050168825,1.1755,21445.0,21443.0,0.36180665]
[1674050169102,1.33648842,21450.0,21440.0,0.17627]
[1674050169103,0.22402101,21449.0,21440.0,0.17627]
[1674050169375,0.22402101,21449.0,21443.0,0.122]
[1674050169376,0.20720933,21448.0,21443.0,0.122]
[1674050169850,0.0215497,21449.0,21443.0,0.122]
[1674050169855,0.0215497,21449.0,21445.0,0.122]
[1674050170114,0.0215497,21449.0,21446.0,0.298453]
[1674050170372,0.0215497,21449.0,21445.0,0.122]
[1674050170642,0.21227565,21449.0,21444.0,0.3]
[1674050170972,0.21227565,21449.0,21442.0,2.16381112]
[1674050170973,0.21227565,21449.0,21442.0,0.726601]
[1674050170974,0.01599793,21446.0,21442.0,0.726601]
[1674050171194,0.317431,21445.0,21443.0,0.3]
[1674050171448,0.317431,21445.0,21443.0,0.1215]
[1674050171449,0.19072595,21445.0,21443.0,0.1215]
[1674050171701,0.02184074,21447.0,21443.0,0.1215]
[1674050171973,0.02184074,21447.0,21442.0,0.47479052]
[1674050171974,0.19072595,21445.0,21442.0,0.47479052]
[1674050172260,0.17521,21448.0,21441.0,0.2714]
[1674050172504,0.21111206,21447.0,21442.0,0.39074576]
[1674050173015,0.01737364,21445.0,21439.0,0.3618511]
[1674050173283,0.19072595,21444.0,21439.0,0.3618511]
[1674050173530,0.32592,21443.0,21439.0,0.3618511]
[1674050173795,0.21236195,21442.0,21439.0,0.3618511]
[1674050174057,0.51664595,21441.0,21439.0,0.3618511]
[1674050174322,0.152826,21440.0,21434.0,1.285]
[1674050174584,0.51269395,21439.0,21436.0,0.43469245]
[1674050174866,0.31445849,21442.0,21436.0,0.43469245]
[1674050174867,0.17493,21442.0,21436.0,0.43469245]
[1674050175127,0.17493,21442.0,21438.0,0.122]
[1674050175128,0.19072595,21442.0,21438.0,0.122]
[1674050175373,0.21227656,21442.0,21436.0,0.59269797]
[1674050175627,0.21227656,21442.0,21437.0,0.3]
[1674050175628,0.19072595,21441.0,21437.0,0.3]
[1674050175914,0.23134916,21442.0,21437.0,0.3]
[1674050176240,0.23134916,21442.0,21434.0,0.46277556]
[1674050176241,0.01942307,21440.0,21434.0,0.46277556]
[1674050176500,0.19072595,21439.0,21436.0,0.47966589]
[1674050176762,0.313937,21438.0,21436.0,0.47966589]
[1674050176998,0.098939,21437.0,21436.0,0.47966589]
[1674050177246,0.098939,21437.0,21433.0,0.39555696]
[1674050177713,0.01846618,21438.0,21433.0,0.39555696]
[1674050177714,0.50466295,21436.0,21433.0,0.39555696]
[1674050177978,0.19072595,21436.0,21433.0,0.39555696]
[1674050178240,0.317172,21435.0,21433.0,0.39555696]
[1674050178502,0.19072618,21438.0,21433.0,0.39555696]
[1674050179011,0.307162,21437.0,21433.0,0.39555696]
[1674050179271,0.040394,21436.0,21433.0,0.39555696]
[1674050179541,0.19072595,21437.0,21433.0,0.39555696]
[1674050179542,0.307162,21435.0,21433.0,0.00355926]
[1674050179851,0.105714,21434.0,21433.0,0.00355926]
[1674050180134,0.01846618,21438.0,21433.0,0.37582254]
[1674050180532,0.01748632,21436.0,21433.0,0.37582254]
[1674050180767,0.01748632,21436.0,21433.0,0.00355926]
[1674050181010,0.4190006,21439.0,21433.0,0.00355926]
[1674050181299,0.01776947,21437.0,21433.0,0.00355926]
[1674050181542,0.50923295,21436.0,21433.0,0.00355926]
[1674050181786,0.029049,21435.0,21433.0,0.00355926]
[1674050182030,0.318507,21434.0,21433.0,0.00355926]
[1674050182538,0.322849,21434.0,21433.0,0.00355926]
[1674050183018,1.60619243,21437.0,21433.0,0.00355926]
[1674050183255,0.313748,21436.0,21433.0,0.00355926]
[1674050183498,0.033808,21435.0,21433.0,0.00355926]
[1674050183756,1.24391648,21437.0,21433.0,0.00355926]
[1674050183757,0.313748,21434.0,21433.0,0.00355926]
[1674050184058,0.52553578,21434.0,21433.0,0.00355926]
[1674050184299,0.45600983,21434.0,21433.0,0.00355926]
[1674050185594,1.35221212,21434.0,21433.0,0.00355926]
[1674050186320,0.33480983,21434.0,21433.0,0.00355926]
[1674050187617,0.45600983,21434.0,21433.0,0.00355926]
[1674050187835,0.93321152,21434.0,21433.0,0.00355926]
[1674050188089,0.93321152,21434.0,21430.0,0.00366111]
[1674050188353,0.63300969,21433.0,21430.0,0.00366111]
[1674050188598,0.59475337,21434.0,21430.0,0.00366111]
[1674050188599,0.313748,21432.0,21430.0,0.00366111]
[1674050188828,0.52562742,21434.0,21430.0,0.00366111]
[1674050188829,0.164998,21431.0,21430.0,0.00366111]
[1674050189100,0.099128,21431.0,21430.0,0.00366111]
[1674050189350,0.19139183,21434.0,21431.0,0.43416014]
[1674050189593,0.02106183,21434.0,21431.0,0.43416014]
[1674050189834,0.322895,21433.0,21431.0,0.43416014]
[1674050190085,0.322895,21433.0,21430.0,0.00366111]
[1674050190327,0.51362095,21433.0,21430.0,0.00366111]
[1674050190585,0.322895,21433.0,21430.0,0.00366111]
[1674050191321,0.322895,21433.0,21430.0,0.48742585]
[1674050191570,0.02106183,21434.0,21430.0,0.48742585]
[1674050192310,0.21178778,21434.0,21430.0,0.48742585]
[1674050192557,0.51174695,21433.0,21430.0,0.48742585]
[1674050192801,0.51174695,21433.0,21430.0,0.00366111]
[1674050193060,0.026535,21432.0,21430.0,0.00366111]
[1674050193309,0.310363,21431.0,21430.0,0.00366111]
[1674050193803,0.19670183,21434.0,21430.0,0.00366111]
[1674050194287,0.313798,21433.0,21431.0,0.47761114]
[1674050194781,0.004,21434.0,21430.0,0.04966111]
[1674050195055,0.35384314,21433.0,21430.0,0.04966111]
[1674050195320,0.012816,21432.0,21430.0,0.04966111]
[1674050195574,0.310756,21431.0,21430.0,0.04966111]
[1674050195864,0.01910314,21433.0,21430.0,0.00366111]
[1674050195865,0.0368,21432.0,21430.0,0.00366111]
[1674050196137,0.01910314,21433.0,21431.0,0.046]
[1674050196138,0.02310314,21433.0,21431.0,0.046]
[1674050196422,0.50199695,21436.0,21431.0,0.48808789]
[1674050196423,0.02122835,21436.0,21431.0,0.48808789]
[1674050196865,0.322935,21435.0,21431.0,0.48808789]
[1674050197123,0.024621,21434.0,21431.0,0.48808789]
[1674050197367,0.02122835,21436.0,21431.0,0.48808789]
[1674050197607,0.50368949,21439.0,21432.0,0.3]
[1674050197863,0.50368949,21439.0,21433.0,0.122]